bitfinex/quotes_BTCUSD_20240617
["timestamp","ask_amount","ask_price","bid_price","bid_amount"]
[1718665498369,0.00085,66745.0,66744.0,0.63025673]
[1718665498569,0.00085,66745.0,66744.0,0.70145673]
[1718665502398,0.00085,66745.0,66744.0,0.04267873]
[1718665502568,0.45032,66745.0,66744.0,0.04267873]
[1718665502782,0.150673,66745.0,66744.0,0.021]
[1718665502992,0.150673,66745.0,66744.0,0.04264242]
[1718665503197,0.45032,66745.0,66744.0,0.021]
[1718665503367,0.749967,66745.0,66744.0,0.021]
[1718665503568,0.150673,66745.0,66744.0,0.021]
[1718665503983,0.45032,66745.0,66744.0,0.04264242]
[1718665507595,0.00085,66745.0,66744.0,0.04264242]
[1718665509570,0.00085,66745.0,66744.0,0.03514242]
[1718665509990,0.150673,66745.0,66744.0,0.03514242]
[1718665510195,0.45032,66745.0,66744.0,0.03514242]
[1718665510848,0.150673,66745.0,66744.0,0.03514242]
[1718665511053,0.00085,66745.0,66744.0,0.32976842]
[1718665511980,0.150673,66745.0,66744.0,0.17994242]
[1718665512357,0.00085,66745.0,66744.0,0.17994242]
[1718665512761,0.00085,66745.0,66744.0,1.1730013]
[1718665512972,0.00085,66745.0,66744.0,2.2756533]
[1718665513186,0.00085,66745.0,66744.0,1.4956533]
[1718665513742,0.00085,66745.0,66744.0,1.4866533]
[1718665514222,0.00085,66745.0,66744.0,1.4956533]
[1718665515204,0.00085,66745.0,66744.0,1.4911533]
[1718665515407,0.00185,66745.0,66744.0,1.62752899]
[1718665515653,0.00185,66745.0,66744.0,1.91818099]
[1718665515776,0.00085,66745.0,66744.0,1.90618099]
[1718665515981,0.00085,66745.0,66744.0,1.62052899]
[1718665516182,0.00185,66745.0,66744.0,1.63452899]
[1718665517915,0.00185,66745.0,66744.0,1.93418099]
[1718665518140,0.00185,66745.0,66744.0,1.86298099]
[1718665518297,0.00185,66745.0,66744.0,1.93418099]
[1718665529688,0.00185,66745.0,66744.0,2.65418099]
[1718665530102,0.00185,66745.0,66744.0,1.93418099]
[1718665530315,0.00185,66745.0,66744.0,2.79418099]
[1718665530533,0.00185,66745.0,66744.0,2.95208099]
[1718665531362,0.00185,66745.0,66744.0,2.09208099]
[1718665531579,0.00185,66745.0,66744.0,2.84208099]
[1718665532454,0.00185,66745.0,66744.0,2.84207336]
[1718665532894,0.00185,66745.0,66744.0,2.09207336]
[1718665533102,0.00185,66745.0,66744.0,2.86207336]
[1718665533574,0.00185,66745.0,66744.0,2.85207336]
[1718665533794,0.00185,66745.0,66744.0,2.09207336]
[1718665534022,0.00185,66745.0,66744.0,2.91207336]
[1718665539900,0.00185,66745.0,66744.0,2.9120742]
[1718665540493,0.00185,66745.0,66744.0,2.97121178]
[1718665541493,0.00185,66745.0,66744.0,2.9120742]
[1718665541717,0.00185,66745.0,66744.0,2.97121437]
[1718665542172,0.00185,66745.0,66744.0,2.9120742]
[1718665545090,0.00185,66745.0,66744.0,2.0920742]
[1718665545296,0.00185,66745.0,66744.0,1.9677053]
[1718665545513,0.00185,66745.0,66744.0,2.09207573]
[1718665545749,0.00185,66745.0,66744.0,2.95207573]
[1718665545955,0.00185,66745.0,66744.0,2.09207573]
[1718665546721,0.00185,66745.0,66744.0,2.09301073]
[1718665549100,0.242484,66763.0,66758.0,0.149792]
[1718665549305,0.242484,66763.0,66757.0,0.0712]
[1718665549306,0.01619204,66762.0,66757.0,0.0712]
[1718665549506,0.01619204,66762.0,66760.0,0.149789]
[1718665549710,0.14978,66765.0,66760.0,0.149789]
[1718665549956,0.01619139,66764.0,66761.0,0.01974612]
[1718665550159,0.149784,66763.0,66761.0,0.01974612]
[1718665550328,0.01619139,66762.0,66759.0,0.14979]
[1718665551537,0.11619139,66762.0,66759.0,0.14979]
[1718665551722,0.149784,66763.0,66759.0,0.14979]
[1718665551932,0.11708195,66762.0,66759.0,0.14979]
[1718665552142,0.1,66762.0,66759.0,0.14979]
[1718665552476,0.149788,66761.0,66757.0,0.149796]
[1718665553172,0.149791,66760.0,66756.0,0.149797]
[1718665553379,0.149788,66761.0,66756.0,0.149797]
[1718665553530,0.1,66762.0,66759.0,0.001]
[1718665553734,0.14979,66760.0,66759.0,0.001]
[1718665554139,0.14979,66760.0,66756.0,0.149797]
[1718665554542,0.14979,66760.0,66756.0,0.152797]
[1718665555014,0.14979,66760.0,66758.0,0.001]
[1718665555441,0.14979,66760.0,66759.0,0.01974993]
[1718665555764,0.149788,66761.0,66759.0,0.01974993]
[1718665556560,0.149788,66761.0,66756.0,0.157797]
[1718665556886,0.149788,66761.0,66756.0,0.008]
[1718665557084,0.149788,66761.0,66757.0,0.01975163]
[1718665557278,0.1449248,66762.0,66757.0,0.01975163]
[1718665557279,0.149791,66760.0,66758.0,0.003]
[1718665557688,0.149791,66760.0,66759.0,0.01974993]
[1718665558325,0.149791,66760.0,66759.0,0.004]
[1718665558491,0.17311079,66760.0,66759.0,0.02374993]
[1718665558694,0.17311079,66760.0,66756.0,0.151799]
[1718665558894,0.02331979,66759.0,66756.0,0.002]
[1718665559550,0.02331979,66759.0,66756.0,0.151798]
[1718665559788,0.299577,66761.0,66756.0,0.002]
[1718665559989,0.149788,66761.0,66756.0,0.149797]
[1718665560162,0.149788,66761.0,66757.0,0.149796]
[1718665560484,0.02331976,66760.0,66757.0,0.149796]
[1718665561097,0.02331976,66760.0,66759.0,0.003]
[1718665561626,0.47268976,66760.0,66759.0,0.003]
[1718665561829,0.17310976,66760.0,66759.0,0.003]
[1718665562239,0.17310976,66760.0,66759.0,0.008]
[1718665562466,0.14979,66760.0,66759.0,0.008]
[1718665563405,0.44937,66760.0,66759.0,0.005]
[1718665566631,0.44937,66760.0,66759.0,0.008]
[1718665568834,0.74895,66760.0,66759.0,0.008]
[1718665569172,1.24728791,66760.0,66759.0,0.008]
[1718665569732,1.1373608,66760.0,66759.0,0.008]
[1718665570360,1.0075708,66760.0,66759.0,0.008]
[1718665570533,1.1573608,66760.0,66759.0,0.008]
[1718665571082,1.24726716,66760.0,66759.0,0.008]
[1718665572539,1.26976968,66760.0,66759.0,0.008]
[1718665572741,1.25213888,66760.0,66759.0,0.008]
[1718665572934,1.26840198,66760.0,66759.0,0.008]
[1718665573144,1.56792832,66760.0,66759.0,0.008]
[1718665573346,1.17714832,66760.0,66759.0,0.008]
[1718665573544,1.24834832,66760.0,66759.0,0.008]
[1718665573746,1.17714832,66760.0,66759.0,0.008]
[1718665573946,1.26834832,66760.0,66759.0,0.008]
[1718665574714,1.1783033,66760.0,66759.0,0.008]
[1718665574923,1.2695033,66760.0,66759.0,0.008]
[1718665575068,1.13716449,66760.0,66759.0,0.008]
[1718665575269,1.11973,66760.0,66759.0,0.008]
[1718665575471,1.15740909,66760.0,66759.0,0.008]
[1718665577156,1.24725139,66760.0,66759.0,0.008]
[1718665577581,1.24725237,66760.0,66759.0,0.008]
[1718665578578,1.24725237,66760.0,66759.0,0.003]
[1718665579269,1.54683237,66760.0,66759.0,0.003]
[1718665579467,2.42488729,66760.0,66759.0,0.003]
[1718665579710,1.048764,66745.0,66744.0,0.000935]
[1718665580127,1.06644309,66745.0,66744.0,0.000935]
[1718665580567,0.81171824,66745.0,66744.0,0.000935]
[1718665581369,0.77909045,66745.0,66744.0,0.000935]
[1718665581772,0.77909045,66745.0,66744.0,0.016935]
[1718665585338,0.149823,66746.0,66745.0,0.1391]
[1718665585502,0.449466,66746.0,66745.0,0.1391]
[1718665585667,0.549466,66746.0,66745.0,0.15806345]
[1718665586851,0.549466,66746.0,66745.0,0.16306345]
[1718665587083,0.549466,66746.0,66745.0,0.17106345]
[1718665593449,0.249823,66746.0,66745.0,0.17106345]
[1718665593721,0.249821,66746.0,66745.0,0.17106345]
[1718665598283,0.12968708,66746.0,66745.0,0.17106345]
[1718665598484,0.02968708,66746.0,66745.0,0.17106345]
[1718665602026,0.05301324,66746.0,66745.0,0.17106345]
[1718665602446,0.05301324,66746.0,66745.0,0.32088645]
[1718665602701,0.1,66753.0,66745.0,0.40281045]
[1718665602912,0.1,66758.0,66754.0,0.0822]
[1718665603116,0.05376575,66757.0,66754.0,0.0822]
[1718665603321,0.05376575,66756.0,66754.0,0.0822]
[1718665603538,0.149801,66756.0,66755.0,0.01894908]
[1718665603738,0.30395436,66756.0,66754.0,0.0822]
[1718665603938,0.15415336,66755.0,66754.0,0.0822]
[1718665604162,0.15415336,66755.0,66754.0,0.0832]
[1718665605746,0.15415336,66755.0,66754.0,0.0822]
[1718665606745,0.15815336,66755.0,66754.0,0.0822]
[1718665606944,0.16015336,66755.0,66754.0,0.0822]
[1718665607121,0.30995436,66755.0,66754.0,0.0822]
[1718665607509,0.149807,66753.0,66748.0,0.1471]
[1718665607739,0.02340024,66752.0,66748.0,0.1471]
[1718665607938,0.15380603,66752.0,66748.0,0.296916]
[1718665608135,0.05380603,66751.0,66748.0,0.296916]
[1718665608340,0.1,66752.0,66748.0,0.296916]
[1718665608341,0.05380603,66750.0,66748.0,0.296916]
[1718665608549,0.02340024,66749.0,66748.0,0.296916]
[1718665608969,0.02340024,66751.0,66748.0,0.296916]
[1718665609184,0.02990235,66750.0,66748.0,0.1471]
[1718665609523,0.02340024,66749.0,66748.0,0.1471]
[1718665609725,0.05330259,66749.0,66748.0,0.1471]
[1718665610546,0.05330259,66749.0,66748.0,0.1551]
[1718665611597,0.05330259,66749.0,66748.0,0.1601]
[1718665612008,0.05330259,66749.0,66748.0,0.0955]
[1718665614000,0.05305699,66749.0,66748.0,0.0955]
[1718665614504,0.20287099,66749.0,66748.0,0.0955]
[1718665614740,0.05305699,66749.0,66748.0,0.0955]
[1718665614860,0.05305699,66749.0,66748.0,0.11445045]
[1718665615297,1.10175799,66749.0,66748.0,0.03195045]
[1718665615493,0.80212899,66749.0,66748.0,0.013]
[1718665615717,0.80205383,66749.0,66748.0,0.013]
[1718665616120,0.77872875,66749.0,66748.0,0.013]
[1718665618178,0.82355656,66749.0,66748.0,0.013]
[1718665618674,1.12318556,66749.0,66748.0,0.013]
[1718665618839,1.21438556,66749.0,66748.0,0.013]
[1718665620158,1.38952834,66749.0,66748.0,0.013]
[1718665620360,1.06875,66746.0,66745.0,0.000935]
[1718665620565,1.64267888,66746.0,66745.0,0.000935]
[1718665620770,2.27453115,66746.0,66745.0,0.000935]
[1718665620988,2.50346184,66746.0,66745.0,0.000935]
[1718665621221,2.50346184,66746.0,66739.0,0.000935]
[1718665621222,1.068827,66741.0,66739.0,0.000935]
[1718665621450,1.44585132,66741.0,66739.0,0.000935]
[1718665621679,2.14518132,66741.0,66739.0,0.000935]
[1718665621902,2.20895244,66741.0,66739.0,0.000935]
[1718665622106,2.63446744,66741.0,66739.0,0.000935]
[1718665622315,2.49089744,66741.0,66739.0,0.000935]
[1718665622522,2.84959015,66741.0,66739.0,0.000935]
[1718665622725,2.82296015,66741.0,66739.0,0.000935]
[1718665622919,2.46426744,66741.0,66739.0,0.000935]
[1718665623582,2.81393244,66741.0,66739.0,0.000935]
[1718665623790,2.51426744,66741.0,66739.0,0.000935]
[1718665624007,1.069128,66722.0,66721.0,0.000935]
[1718665624230,1.240328,66722.0,66721.0,0.000935]
[1718665624436,1.31486781,66722.0,66721.0,0.000935]
[1718665624648,1.24998475,66722.0,66721.0,0.000935]
[1718665625269,1.25698475,66722.0,66721.0,0.001935]
[1718665625734,1.25698475,66722.0,66721.0,0.000935]
[1718665625851,1.24998475,66722.0,66721.0,0.000935]
[1718665627479,1.26098475,66722.0,66721.0,0.002935]
[1718665627681,1.27598475,66722.0,66721.0,0.001935]
[1718665628062,1.28198475,66722.0,66721.0,0.002935]
[1718665628697,1.70480788,66722.0,66721.0,0.002935]
[1718665628896,1.75507802,66722.0,66721.0,0.002935]
[1718665629599,1.73507802,66722.0,66721.0,0.002935]
[1718665629841,1.45532702,66722.0,66721.0,0.002935]
[1718665631274,1.40505688,66722.0,66721.0,0.002935]
[1718665631862,1.38505688,66722.0,66721.0,0.002935]
[1718665632182,1.40505688,66722.0,66721.0,0.002935]
[1718665633481,1.31385688,66722.0,66721.0,0.002935]
[1718665633725,1.40505688,66722.0,66721.0,0.002935]
[1718665638603,1.44968728,66722.0,66721.0,0.002935]
[1718665641154,1.49941163,66722.0,66721.0,0.002935]
[1718665646922,1.49946302,66722.0,66721.0,0.002935]
[1718665650638,1.42826302,66722.0,66721.0,0.002935]
[1718665650844,1.49946302,66722.0,66721.0,0.002935]
[1718665657578,1.52291019,66722.0,66721.0,0.002935]
[1718665659871,1.52291019,66722.0,66721.0,0.078235]
[1718665663720,1.52291019,66722.0,66721.0,0.002935]
[1718665666216,1.63500034,66722.0,66721.0,0.002935]
[1718665666815,1.63528969,66722.0,66721.0,0.002935]
[1718665667228,1.63529159,66722.0,66721.0,0.002935]
[1718665667426,1.65545194,66722.0,66721.0,0.002935]
[1718665667785,1.54307054,66722.0,66721.0,0.002935]
[1718665680677,1.15211954,66722.0,66721.0,0.002935]
[1718665680893,1.15211954,66722.0,66721.0,0.064535]
[1718665681120,1.15211954,66722.0,66721.0,0.144635]
[1718665681743,1.45187054,66722.0,66721.0,0.144635]
[1718665682367,0.25001366,66722.0,66721.0,0.144635]
[1718665682567,0.22656649,66722.0,66721.0,0.144635]
[1718665682773,0.22656649,66722.0,66721.0,0.16368005]
[1718665682981,0.22656649,66722.0,66721.0,0.144635]
[1718665683171,0.22656649,66722.0,66721.0,0.16367805]
[1718665683376,0.31654703,66722.0,66721.0,0.16367805]
[1718665684345,0.76617303,66722.0,66721.0,0.16367805]
[1718665684924,0.76617303,66722.0,66721.0,0.144635]
[1718665685642,0.67619249,66722.0,66721.0,0.144635]
[1718665686050,0.67506695,66722.0,66721.0,0.144635]
[1718665686514,0.42028658,66722.0,66721.0,0.144635]
[1718665688185,0.42028658,66722.0,66721.0,0.16367576]
[1718665688186,0.27041158,66722.0,66721.0,0.16367576]
[1718665688334,0.37531595,66722.0,66721.0,0.16367576]
[1718665688862,0.37531595,66722.0,66721.0,0.144635]
[1718665689889,0.3741975,66722.0,66721.0,0.144635]
[1718665690345,0.44166465,66722.0,66721.0,0.144635]
[1718665690564,0.44166465,66722.0,66721.0,0.14459475]
[1718665691609,0.44204634,66722.0,66721.0,0.14459475]
[1718665692665,0.37457919,66722.0,66721.0,0.14459475]
[1718665693074,0.22470419,66722.0,66721.0,0.14459475]
[1718665693280,0.22470419,66722.0,66721.0,0.96518175]
[1718665693281,0.05991344,66722.0,66721.0,0.96518175]
[1718665693516,0.012,66722.0,66721.0,1.00422004]
[1718665693742,0.012,66722.0,66721.0,1.30397504]
[1718665694174,0.012,66722.0,66721.0,1.00422004]
[1718665694578,0.006,66722.0,66721.0,0.98322004]
[1718665694838,0.1944834,66732.0,66725.0,0.1459]
[1718665694839,0.2944834,66732.0,66725.0,0.1459]
[1718665695059,0.04717877,66731.0,66727.0,0.1422]
[1718665695478,0.2944834,66732.0,66728.0,0.1422]
[1718665695711,0.176836,66737.0,66730.0,0.149857]
[1718665695885,0.149845,66736.0,66731.0,0.0663]
[1718665696126,0.19627233,66736.0,66732.0,0.0759]
[1718665696345,0.149849,66734.0,66732.0,0.0759]
[1718665696510,0.149849,66734.0,66733.0,0.01902214]
[1718665696733,0.149849,66734.0,66732.0,0.0759]
[1718665697099,0.149849,66734.0,66733.0,0.01902214]
[1718665697914,0.249849,66734.0,66733.0,0.01902214]
[1718665698830,0.254849,66734.0,66733.0,0.01902214]
[1718665699036,0.30116526,66734.0,66733.0,0.01902214]
[1718665699239,0.30116526,66734.0,66732.0,0.0759]
[1718665699439,0.29616626,66733.0,66732.0,0.0759]
[1718665701356,0.30116626,66733.0,66732.0,0.0759]
[1718665702016,0.30116626,66733.0,66732.0,0.1367]
[1718665702436,0.60386726,66733.0,66732.0,0.1367]
[1718665704412,0.15431626,66733.0,66727.0,0.1385]
[1718665704613,0.149862,66728.0,66727.0,0.1385]
[1718665704809,0.449586,66728.0,66727.0,0.1385]
[1718665705218,0.149875,66722.0,66721.0,0.00089475]
[1718665705583,0.149871,66724.0,66722.0,0.076]
[1718665705806,0.149871,66724.0,66723.0,0.1411]
[1718665706030,0.149871,66724.0,66723.0,0.16012486]
[1718665706516,0.749355,66724.0,66723.0,0.16012486]
[1718665706737,0.749355,66724.0,66723.0,0.1411]
[1718665707427,0.749355,66724.0,66723.0,0.1471]
[1718665708166,0.79411186,66724.0,66723.0,0.1471]
[1718665708380,0.79511186,66724.0,66723.0,0.1471]
[1718665708604,0.79411186,66724.0,66723.0,0.1471]
[1718665709072,0.79511186,66724.0,66723.0,0.1551]
[1718665709321,0.79411186,66724.0,66723.0,0.1471]
[1718665709552,0.04486564,66731.0,66721.0,0.00089475]
[1718665709553,0.04486564,66735.0,66726.0,0.0643]
[1718665709773,0.149862,66728.0,66727.0,0.0804]
[1718665710002,0.49504863,66728.0,66727.0,0.0804]
[1718665710222,0.49504863,66728.0,66727.0,0.09942376]
[1718665710447,0.49504863,66728.0,66727.0,0.0804]
[1718665710905,0.79477263,66728.0,66727.0,0.0804]
[1718665712296,0.79447659,66728.0,66727.0,0.0804]
[1718665712781,0.79447693,66728.0,66727.0,0.0804]
[1718665712990,0.79447693,66728.0,66727.0,0.0824]
[1718665713675,1.09420093,66728.0,66727.0,0.0824]
[1718665714375,1.09820093,66728.0,66727.0,0.0824]
[1718665715304,1.09820093,66728.0,66727.0,0.0804]
[1718665715535,1.09820093,66728.0,66727.0,0.0814]
[1718665716259,1.09420093,66728.0,66727.0,0.0814]
[1718665716505,1.09520093,66728.0,66727.0,0.0814]
[1718665718914,0.84479047,66728.0,66727.0,0.0814]
[1718665719736,0.99465247,66728.0,66727.0,0.0814]
[1718665727589,1.03957254,66728.0,66727.0,0.0814]
[1718665728381,0.99465247,66728.0,66727.0,0.0814]
[1718665728697,0.99413347,66728.0,66727.0,0.0814]
[1718665732578,1.29385747,66728.0,66727.0,0.0814]
[1718665734494,1.36126061,66728.0,66727.0,0.0814]
[1718665736592,1.38154536,66728.0,66727.0,0.0814]
[1718665738458,1.31414222,66728.0,66727.0,0.0814]
[1718665742314,1.31356832,66728.0,66727.0,0.0814]
[1718665743473,1.8572212,66728.0,66727.0,0.001]
[1718665743599,1.98066552,66728.0,66727.0,0.001]
[1718665744823,1.68094152,66728.0,66727.0,0.001]
[1718665745027,1.68094152,66728.0,66727.0,0.001935]
[1718665746188,1.68179152,66728.0,66727.0,0.001935]
[1718665747745,2.46476367,66728.0,66727.0,0.001935]
[1718665747959,2.46619931,66728.0,66727.0,0.001935]
[1718665748165,2.54346774,66728.0,66727.0,0.001935]
[1718665748381,2.30857695,66728.0,66727.0,0.001935]
[1718665748756,2.40857695,66728.0,66727.0,0.001935]
[1718665748971,2.41444719,66728.0,66727.0,0.001935]
[1718665749380,2.54929884,66728.0,66727.0,0.001935]
[1718665749582,2.74213387,66728.0,66727.0,0.001935]
[1718665749779,2.70093787,66728.0,66727.0,0.001935]
[1718665749977,2.50710284,66728.0,66727.0,0.001935]
[1718665750427,2.51310284,66728.0,66727.0,0.002935]
[1718665750833,2.51310284,66728.0,66727.0,0.001935]
[1718665751276,2.37825119,66728.0,66727.0,0.001935]
[1718665751484,1.368839,66724.0,66723.0,0.000935]
[1718665751689,1.76346041,66724.0,66723.0,0.000935]
[1718665752683,1.69226041,66724.0,66723.0,0.000935]
[1718665752884,1.74001609,66724.0,66723.0,0.000935]
[1718665753515,1.66881609,66724.0,66723.0,0.000935]
[1718665753843,1.74701609,66724.0,66723.0,0.001935]
[1718665754680,1.75501609,66724.0,66723.0,0.002935]
[1718665755105,1.68381609,66724.0,66723.0,0.002935]
[1718665755299,1.86733125,66724.0,66723.0,0.002935]
[1718665756973,1.79613125,66724.0,66723.0,0.002935]
[1718665757285,1.86733125,66724.0,66723.0,0.002935]
[1718665759222,1.86855246,66724.0,66723.0,0.002935]
[1718665760410,1.89199919,66724.0,66723.0,0.002935]
[1718665760611,1.8439566,66724.0,66723.0,0.002935]
[1718665760856,1.77949575,66724.0,66723.0,0.002935]
[1718665761810,1.73166091,66724.0,66723.0,0.002935]
[1718665762021,2.13140291,66724.0,66723.0,0.002935]
[1718665762242,1.468879,66722.0,66721.0,0.00089475]
[1718665762412,1.74505461,66722.0,66721.0,0.00089475]
[1718665762864,1.71625461,66722.0,66721.0,0.00089475]
[1718665763128,1.81625461,66722.0,66721.0,0.00089475]
[1718665763335,2.11600561,66722.0,66721.0,0.00089475]
[1718665764200,2.24600561,66722.0,66721.0,0.00089475]
[1718665764400,2.25400561,66722.0,66721.0,0.00189475]
[1718665764788,2.26000561,66722.0,66721.0,0.00289475]
[1718665765391,1.43930361,66722.0,66721.0,0.07829475]
[1718665765599,1.73025461,66722.0,66721.0,0.07829475]
[1718665765839,1.70680788,66722.0,66721.0,0.07829475]
[1718665766044,1.75465184,66722.0,66721.0,0.07829475]
[1718665766245,1.86689227,66722.0,66721.0,0.07829475]
[1718665766610,1.89023094,66722.0,66721.0,0.07829475]
[1718665767017,1.89023094,66722.0,66721.0,0.00289475]
[1718665767266,1.80143915,66722.0,66721.0,0.00289475]
[1718665767420,1.77810048,66722.0,66721.0,0.00289475]
[1718665768601,1.87810048,66722.0,66721.0,0.00289475]
[1718665770507,1.069237,66715.0,66714.0,0.0754]
[1718665770641,1.4863453,66715.0,66714.0,0.0754]
[1718665771943,1.48876289,66715.0,66714.0,0.0764]
[1718665772498,1.44387457,66715.0,66714.0,0.0764]
[1718665772720,1.48890868,66715.0,66714.0,0.0794]
[1718665773272,1.44402062,66715.0,66714.0,0.0794]
[1718665773494,1.48890868,66715.0,66714.0,0.0794]
[1718665774100,1.48890868,66715.0,66714.0,0.0784]
[1718665774284,1.48890868,66715.0,66714.0,0.0754]
[1718665774491,1.49384991,66715.0,66714.0,0.0754]
[1718665774634,1.49684991,66715.0,66714.0,0.0754]
[1718665774850,1.49685028,66715.0,66714.0,0.0754]
[1718665777792,0.74959,66703.0,66702.0,0.000935]
[1718665778001,0.79993967,66703.0,66702.0,0.143335]
[1718665778375,1.09993967,66703.0,66702.0,0.143335]
[1718665778575,1.39977567,66703.0,66702.0,0.143335]
[1718665779183,1.40077567,66703.0,66702.0,0.153335]
[1718665779380,1.40177567,66703.0,66702.0,0.165335]
[1718665779554,1.10193967,66703.0,66702.0,0.165335]
[1718665786465,1.10245091,66703.0,66702.0,0.165335]
[1718665791380,1.05159,66703.0,66702.0,0.165335]
[1718665791580,1.10184038,66703.0,66702.0,0.165335]
[1718665791799,1.12172692,66703.0,66702.0,0.165335]
[1718665797690,1.07147654,66703.0,66702.0,0.165335]
[1718665797897,1.12192065,66703.0,66702.0,0.165335]
[1718665799996,1.42175665,66703.0,66702.0,0.165335]
[1718665800202,1.12192065,66703.0,66702.0,0.165335]
[1718665800426,1.42175665,66703.0,66702.0,0.165335]
[1718665800784,1.52175665,66703.0,66702.0,0.165335]
[1718665801551,1.52175665,66703.0,66702.0,0.022935]
[1718665801552,1.69448553,66703.0,66702.0,0.022935]
[1718665801736,1.93709618,66703.0,66702.0,0.022935]
[1718665801964,2.27048697,66703.0,66702.0,0.022935]
[1718665802110,2.35409592,66703.0,66702.0,0.022935]
[1718665802313,2.20138336,66703.0,66702.0,0.022935]
[1718665802646,2.17258336,66703.0,66702.0,0.022935]
[1718665802849,1.87174736,66703.0,66702.0,0.010935]
[1718665803059,1.78713841,66703.0,66702.0,0.003935]
[1718665803476,1.78713841,66703.0,66702.0,0.001935]
[1718665803649,2.02721013,66703.0,66702.0,0.001935]
[1718665803850,2.40524613,66703.0,66702.0,0.001935]
[1718665804057,2.18901908,66703.0,66702.0,0.001935]
[1718665804266,2.18901908,66703.0,66702.0,0.002935]
[1718665804267,2.49785508,66703.0,66702.0,0.002935]
[1718665805084,2.42665508,66703.0,66702.0,0.002935]
[1718665805230,2.19801908,66703.0,66702.0,0.002935]
[1718665806350,2.28687782,66703.0,66702.0,0.002935]
[1718665806759,2.21766501,66703.0,66702.0,0.002935]
[1718665806959,2.28886501,66703.0,66702.0,0.002935]
[1718665807363,2.15282476,66703.0,66702.0,0.002935]
[1718665807609,2.20428334,66703.0,66702.0,0.002935]
[1718665808296,2.09197172,66703.0,66702.0,0.002935]
[1718665808496,2.39180772,66703.0,66702.0,0.002935]
[1718665809141,2.50331984,66703.0,66702.0,0.002935]
[1718665809336,2.39100822,66703.0,66702.0,0.002935]
[1718665809672,2.09117222,66703.0,66702.0,0.002935]
[1718665810212,2.39100822,66703.0,66702.0,0.002935]
[1718665810621,2.49100822,66703.0,66702.0,0.002935]
[1718665811421,2.39100822,66703.0,66702.0,0.002935]
[1718665811632,2.41523689,66703.0,66702.0,0.002935]
[1718665812632,2.39535035,66703.0,66702.0,0.002935]
[1718665813629,2.37112168,66703.0,66702.0,0.002935]
[1718665815331,2.46091947,66703.0,66702.0,0.002935]
[1718665816151,2.37112168,66703.0,66702.0,0.002935]
[1718665816365,2.46091808,66703.0,66702.0,0.002935]
[1718665817190,2.46091748,66703.0,66702.0,0.002935]
[1718665819002,2.474998,66703.0,66702.0,0.002935]
[1718665819209,2.47499775,66703.0,66702.0,0.002935]
[1718665820351,2.3852016,66703.0,66702.0,0.002935]
[1718665820806,2.4852016,66703.0,66702.0,0.002935]
[1718665822147,2.43454252,66703.0,66702.0,0.002935]
[1718665822457,2.4847305,66703.0,66702.0,0.002935]
[1718665822681,2.9014492,66703.0,66702.0,0.002935]
[1718665823271,2.95170176,66703.0,66702.0,0.002935]
[1718665823605,2.49457852,66703.0,66702.0,0.002935]
[1718665824000,3.09517104,66703.0,66702.0,0.002935]
[1718665824312,3.08109052,66703.0,66702.0,0.002935]
[1718665824701,3.35692952,66703.0,66702.0,0.002935]
[1718665824904,3.51919532,66703.0,66702.0,0.002935]
[1718665825122,3.59265032,66703.0,66702.0,0.002935]
[1718665825337,3.48038452,66703.0,66702.0,0.002935]
[1718665826769,3.78022052,66703.0,66702.0,0.002935]
[1718665827324,3.93293308,66703.0,66702.0,0.002935]
[1718665827990,3.88293308,66703.0,66702.0,0.002935]
[1718665829520,3.88293308,66703.0,66692.0,0.070305]
[1718665829521,1.369464,66693.0,66692.0,0.009405]
[1718665829743,2.15536286,66693.0,66692.0,0.009405]
[1718665830155,2.1788214,66693.0,66692.0,0.009405]
[1718665830566,2.16225468,66693.0,66692.0,0.009405]
[1718665830894,2.26225468,66693.0,66692.0,0.009405]
[1718665831108,2.26632366,66693.0,66692.0,0.009405]
[1718665831274,2.16732366,66693.0,66692.0,0.009405]
[1718665831487,2.26532366,66693.0,66692.0,0.009405]
[1718665831692,2.26632366,66693.0,66692.0,0.009405]
[1718665831871,2.27168704,66693.0,66692.0,0.009405]
[1718665832050,2.27032366,66693.0,66692.0,0.009405]
[1718665832250,3.70788222,66693.0,66692.0,0.009405]
[1718665832508,4.11251334,66693.0,66692.0,0.009405]
[1718665833270,4.16251334,66693.0,66692.0,0.009405]
[1718665834616,4.15851334,66693.0,66692.0,0.009405]
[1718665835035,4.16751334,66693.0,66692.0,0.001]
[1718665835255,4.27973241,66693.0,66692.0,0.001]
[1718665835456,4.47651334,66693.0,66692.0,0.001]
[1718665836030,4.40531334,66693.0,66692.0,0.001]
[1718665836231,1.669472,66688.0,66687.0,0.000935]
[1718665836438,2.37943986,66688.0,66687.0,0.000935]
[1718665836654,2.7477561,66688.0,66687.0,0.000935]
[1718665837292,2.63562517,66688.0,66687.0,0.000935]
[1718665837714,2.64162517,66688.0,66687.0,0.000935]
[1718665840313,2.5200147,66688.0,66687.0,0.000935]
[1718665840530,2.83137163,66688.0,66687.0,0.000935]
[1718665840733,2.73137163,66688.0,66687.0,0.000935]
[1718665841370,2.73137163,66688.0,66681.0,0.009405]
[1718665841371,1.669689,66682.0,66681.0,0.009405]
[1718665841595,1.669689,66682.0,66678.0,0.154605]
[1718665841596,0.469916,66679.0,66678.0,0.154605]
[1718665841811,2.25628713,66679.0,66678.0,0.154605]
[1718665842030,2.35673343,66679.0,66678.0,0.154605]
[1718665842244,3.09614193,66679.0,66678.0,0.009405]
[1718665842422,2.75673343,66679.0,66678.0,0.009405]
[1718665842658,3.12376883,66679.0,66678.0,0.009405]
[1718665842872,3.71424783,66679.0,66678.0,0.009405]
[1718665843295,3.80400283,66679.0,66678.0,0.009405]
[1718665843469,3.71424783,66679.0,66678.0,0.009405]
[1718665843680,3.62367383,66679.0,66678.0,0.009405]
[1718665843894,3.72367383,66679.0,66678.0,0.009405]
[1718665844112,3.52247383,66679.0,66678.0,0.009405]
[1718665844324,3.50447383,66679.0,66678.0,0.009405]
[1718665844773,2.98753936,66679.0,66678.0,0.009405]
[1718665844992,2.97353936,66679.0,66678.0,0.009405]
[1718665845275,2.90624585,66679.0,66678.0,0.009405]